bitfinex/quotes_SOLUSD_20251118
["timestamp","ask_amount","ask_price","bid_price","bid_amount"]
[1763486943605,18.12096,139.74,139.69,5.05]
[1763486943606,18.42096,139.74,139.69,5.05]
[1763486943794,18.12096,139.74,139.7,10.59234]
[1763486943995,14.42882769,139.77,139.72,9.88234]
[1763486943996,4.64,139.77,139.72,9.88234]
[1763486944306,0.3,139.77,139.72,9.88234]
[1763486944516,0.3,139.77,139.72,10.59234]
[1763486944720,10.18234,139.82,139.76,9.88234]
[1763486944929,0.3,139.82,139.77,9.88234]
[1763486945209,14.22234,139.84,139.77,10.59234]
[1763486945382,0.3,139.82,139.77,10.59234]
[1763486945586,9.78882769,139.83,139.77,10.59234]
[1763486945913,19.67116769,139.83,139.77,10.59234]
[1763486946122,0.3,139.82,139.74,0.71]
[1763486946432,0.3,139.82,139.77,9.88234]
[1763486946786,0.3,139.82,139.77,10.59234]
[1763486947297,4.65795829,139.82,139.78,9.88234]
[1763486947485,6.11603147,139.85,139.8,9.88234]
[1763486947486,6.41603147,139.85,139.8,9.88234]
[1763486947809,5.15795829,139.85,139.8,10.59234]
[1763486948128,23.27891829,139.85,139.79,9.88234]
[1763486948301,9.77787993,139.84,139.79,9.88234]
[1763486948612,4.65795829,139.84,139.79,9.88234]
[1763486948787,18.12096,139.83,139.79,9.88234]
[1763486949110,4.65795829,139.82,139.79,10.59234]
[1763486949690,4.65795829,139.82,139.8,10.59234]
[1763486949989,9.98882769,139.85,139.8,10.59234]
[1763486950182,4.87910292,139.85,139.81,9.88234]
[1763486950403,5.17910292,139.85,139.81,9.88234]
[1763486950605,5.14019522,139.84,139.79,9.88234]
[1763486950785,9.81929814,139.84,139.79,9.88234]
[1763486950989,4.67910292,139.84,139.79,10.59234]
[1763486951189,9.82779908,139.83,139.79,10.59234]
[1763486951389,4.67910292,139.84,139.8,9.88234]
[1763486951616,9.82804619,139.83,139.8,9.88234]
[1763486951824,4.67910292,139.84,139.8,10.59234]
[1763486952007,9.88234,139.81,139.76,0.71]
[1763486952310,14.56144292,139.82,139.77,9.88234]
[1763486952511,9.82873951,139.81,139.78,9.88234]
[1763486952715,4.67910292,139.82,139.78,9.88234]
[1763486952891,9.88234,139.82,139.77,10.57234]
[1763486953286,5.14934902,139.81,139.78,0.69]
[1763486954230,4.67910292,139.8,139.79,9.88234]
[1763486954510,4.67910292,139.8,139.78,10.57234]
[1763486954715,4.67910292,139.82,139.78,10.57234]
[1763486955020,9.84669887,139.81,139.78,0.69]
[1763486955322,9.84669887,139.8,139.77,14.22234]
[1763486955506,9.84669887,139.79,139.78,0.69]
[1763486956016,5.16759595,139.79,139.78,10.57234]
[1763486956220,9.84669887,139.79,139.78,10.57234]
[1763486956518,5.16759595,139.79,139.78,10.57234]
[1763486956720,5.16759595,139.79,139.78,0.69]
[1763486956898,9.84669887,139.79,139.78,0.69]
[1763486957102,5.16759595,139.79,139.78,10.57234]
[1763486957496,9.84669887,139.79,139.78,10.57234]
[1763486957832,5.16759595,139.79,139.78,10.57234]
[1763486959105,9.84669887,139.79,139.78,10.57234]
[1763486959522,9.84669887,139.79,139.69,18.12096]
[1763486959710,9.84669887,139.78,139.76,9.88234]
[1763486959909,9.84669887,139.77,139.76,9.88234]
[1763486960212,5.16759595,139.77,139.76,14.22234]
[1763486960391,9.84669887,139.79,139.76,14.22234]
[1763486960598,9.84669887,139.78,139.76,4.34]
[1763486960815,4.72112262,139.8,139.77,10.60234]
[1763486961006,4.72112262,139.82,139.79,9.88234]
[1763486961209,9.88498993,139.81,139.8,9.88234]
[1763486961432,9.88498993,139.81,139.8,0.72]
[1763486962023,5.16386731,139.81,139.8,0.72]
[1763486962234,5.16386731,139.82,139.8,0.72]
[1763486962438,5.16386731,139.81,139.8,0.72]
[1763486963539,5.16386731,139.81,139.8,10.60234]
[1763486963838,5.16386731,139.82,139.8,10.60234]
[1763486964022,5.16386731,139.81,139.8,10.60234]
[1763486964331,5.16386731,139.82,139.8,10.60234]
[1763486964914,5.16386731,139.82,139.8,6.6467113]
[1763486966532,5.16386731,139.82,139.8,5.9267113]
[1763486966731,5.16386731,139.82,139.81,0.72]
[1763486967636,5.16386731,139.82,139.81,4.34]
[1763486967938,0.2,139.85,139.81,10.2667113]
[1763486968140,0.2,139.85,139.83,5.9267113]
[1763486968325,5.36490812,139.85,139.81,10.2667113]
[1763486968721,5.36490812,139.85,139.82,5.9267113]
[1763486969331,5.16553783,139.84,139.79,4.32]
[1763486969531,0.2,139.85,139.81,5.9267113]
[1763486969739,0.2,139.85,139.8,5.9267113]
[1763486969740,11.29177687,139.85,139.8,5.9267113]
[1763486970056,5.16506557,139.84,139.8,5.9267113]
[1763486970353,10.84762658,139.85,139.8,5.9267113]
[1763486970549,11.09058066,139.84,139.79,10.2467113]
[1763486970763,11.09058066,139.83,139.76,0.72]
[1763486970929,5.9267113,139.79,139.71,18.12096]
[1763486971271,5.9267113,139.77,139.71,5.9267113]
[1763486971424,27.90978769,139.79,139.74,5.9267113]
[1763486971623,27.90978769,139.79,139.72,4.34]
[1763486971624,18.12096,139.81,139.72,5.06]
[1763486971824,18.12096,139.81,139.77,5.9267113]
[1763486971825,22.46096,139.81,139.77,5.9267113]
[1763486972246,4.34,139.81,139.78,5.9267113]
[1763486972462,4.34,139.84,139.8,5.9267113]
[1763486973433,4.34,139.84,139.77,4.34]
[1763486973740,10.2667113,139.84,139.79,5.9267113]
[1763486974053,4.34,139.84,139.79,5.9267113]
[1763486975258,10.2667113,139.84,139.79,5.9267113]
[1763486975456,4.34,139.84,139.79,5.9267113]
[1763486975756,10.2667113,139.84,139.79,5.9267113]
[1763486975970,4.34,139.84,139.8,5.9267113]
[1763486976329,4.34,139.84,139.76,5.06]
[1763486976525,0.2,139.85,139.83,5.9267113]
[1763486976752,0.2,139.85,139.84,5.9267113]
[1763486979428,0.2,139.85,139.81,4.34]
[1763486979634,0.2,139.85,139.84,5.9267113]
[1763486980738,0.2,139.85,139.84,6.6467113]
[1763486981344,0.2,139.91,139.84,6.6467113]
[1763486981666,0.2,139.91,139.9,5.9267113]
[1763486981960,0.2,139.91,139.89,5.9267113]
[1763486982563,0.2,139.91,139.85,0.72]
[1763486982866,6.1267113,139.91,139.86,5.9267113]
[1763486983067,6.1267113,139.91,139.85,5.9267113]
[1763486983375,5.9267113,139.9,139.85,5.9267113]
[1763486983677,5.9267113,139.89,139.84,5.9267113]
[1763486983855,5.9267113,139.9,139.85,5.9267113]
[1763486985398,6.1267113,139.91,139.86,5.9267113]
[1763486985561,0.2,139.91,139.87,5.9267113]
[1763486985761,5.31772142,139.91,139.87,5.9267113]
[1763486986396,10.02811605,139.91,139.87,5.9267113]
[1763486986572,4.91039463,139.91,139.87,5.9267113]
[1763486986766,0.2,139.91,139.87,5.9267113]
[1763486986964,5.31871402,139.91,139.87,5.9267113]
[1763486987188,11.24542532,139.91,139.86,5.9267113]
[1763486987383,6.1267113,139.91,139.85,0.7]
[1763486987666,6.1267113,139.91,139.86,5.9267113]
[1763486987968,0.2,139.91,139.87,5.9267113]
[1763486988167,5.31659227,139.91,139.87,5.9267113]
[1763486988381,10.02303658,139.91,139.87,5.9267113]
[1763486988578,4.90644431,139.91,139.87,5.9267113]
[1763486988783,0.2,139.91,139.87,5.9267113]
[1763486988994,5.31202569,139.91,139.87,5.9267113]
[1763486989165,10.01847,139.91,139.87,5.9267113]
[1763486989366,0.2,139.91,139.87,5.9267113]
[1763486989865,0.2,139.91,139.87,6.6267113]
[1763486990065,0.2,139.91,139.88,5.9267113]
[1763486990989,6.8167113,139.91,139.83,0.7]
[1763486991303,5.9267113,139.9,139.85,5.9267113]
[1763486991602,11.52595322,139.91,139.86,5.9267113]
[1763486992098,6.8167113,139.91,139.86,5.9267113]
[1763486993504,6.8167113,139.91,139.84,0.7]
[1763486993680,6.8167113,139.91,139.86,5.9267113]
[1763486994088,6.8167113,139.91,139.84,0.7]
[1763486994299,6.8167113,139.91,139.86,5.9267113]
[1763486994669,6.8167113,139.91,139.84,0.7]
[1763486994874,6.8167113,139.91,139.86,5.9267113]
[1763486995404,11.52409831,139.91,139.86,5.9267113]
[1763486995570,11.52409831,139.91,139.87,0.7]
[1763486995776,6.8167113,139.91,139.86,5.9267113]
[1763486996090,6.8167113,139.91,139.86,6.6267113]
[1763486996486,6.1267113,139.91,139.86,0.7]
[1763486996692,0.69,139.9,139.86,6.6267113]
[1763486998169,6.8167113,139.91,139.86,6.6267113]
[1763486998376,6.6167113,139.9,139.86,6.6267113]
[1763486998600,0.69,139.9,139.86,6.6267113]
[1763486998801,0.69,139.9,139.86,0.7]
[1763486998974,0.69,139.9,139.86,6.6267113]
[1763486999304,6.1267113,139.91,139.86,6.6267113]
[1763486999603,0.89,139.91,139.87,5.9267113]
[1763486999791,6.8167113,139.91,139.86,6.6267113]
[1763486999991,0.69,139.9,139.86,6.6267113]
[1763487000190,6.6167113,139.9,139.8,24.0476713]
[1763487000490,5.9267113,139.88,139.83,5.9267113]
[1763487000911,5.9267113,139.88,139.84,0.7]
[1763487001410,5.9267113,139.88,139.7,13.08449513]
[1763487001411,5.9267113,139.85,139.7,13.08449513]
[1763487001712,0.69,139.87,139.7,13.08449513]
[1763487001713,9.71643742,139.87,139.8,5.9267113]
[1763487001884,5.9267113,139.85,139.81,5.9267113]
[1763487002083,5.9267113,139.85,139.81,6.6267113]
[1763487002311,22.44096,139.89,139.83,5.9267113]
[1763487002477,5.9267113,139.89,139.84,5.9267113]
[1763487002688,24.0476713,139.9,139.85,5.9267113]
[1763487003091,24.0476713,139.9,139.85,6.6267113]
[1763487003309,24.7376713,139.9,139.85,5.9267113]
[1763487003608,24.7376713,139.9,139.82,4.32]
[1763487003609,5.9267113,139.88,139.83,0.7]
[1763487003923,0.69,139.89,139.83,6.6267113]
[1763487004097,5.9267113,139.88,139.83,6.6267113]
[1763487004488,0.69,139.88,139.84,6.6267113]
[1763487004700,24.0476713,139.9,139.85,5.9267113]
[1763487004904,0.2,139.91,139.89,5.9267113]
[1763487005104,0.2,139.91,139.9,5.9267113]
[1763487005706,0.2,139.91,139.9,6.6267113]
[1763487006189,0.2,139.91,139.88,0.7]
[1763487006493,0.89,139.91,139.87,5.9267113]
[1763487006698,0.2,139.91,139.88,5.9267113]
[1763487007092,0.2,139.91,139.87,5.9267113]
[1763487007512,0.2,139.91,139.87,6.6267113]
[1763487008286,0.2,139.91,139.88,6.6267113]
[1763487008714,0.2,139.91,139.88,5.9267113]
[1763487009125,0.2,139.91,139.89,5.9267113]
[1763487009293,0.2,139.91,139.88,5.9267113]
[1763487009484,0.2,139.91,139.88,6.6267113]
[1763487010197,0.2,139.91,139.88,5.9267113]
[1763487010395,0.89,139.91,139.87,5.9267113]
[1763487010606,0.2,139.91,139.87,5.9267113]
[1763487011024,0.2,139.91,139.88,6.6267113]
[1763487011331,0.2,139.91,139.89,5.9267113]
[1763487011489,0.2,139.91,139.88,6.6267113]
[1763487011684,0.2,139.91,139.89,5.9267113]
[1763487011906,0.2,139.91,139.9,5.9267113]
[1763487012118,0.2,139.91,139.9,6.6267113]
[1763487014934,0.2,139.91,139.9,0.7]
[1763487015095,0.2,139.91,139.88,0.72]
[1763487015298,0.2,139.91,139.9,5.9267113]
[1763487015539,0.2,139.91,139.89,6.6467113]
[1763487015907,0.2,139.91,139.88,5.9267113]
[1763487016113,0.2,139.91,139.88,6.6467113]
[1763487016328,0.85,139.91,139.87,5.9267113]
[1763487016531,0.85,139.91,139.87,6.6467113]
[1763487017033,0.2,139.91,139.87,6.6467113]
[1763487017212,0.2,139.91,139.88,0.72]
[1763487017841,0.2,139.91,139.88,6.6467113]
[1763487018002,0.2,139.91,139.9,5.8247113]
[1763487018208,0.2,139.91,139.89,5.9267113]
[1763487018607,0.2,139.91,139.9,6.6467113]
[1763487019338,0.2,139.91,139.9,5.9267113]
[1763487019837,0.2,139.91,139.9,0.72]
[1763487020004,0.2,139.91,139.9,5.9267113]
[1763487020208,0.2,139.91,139.89,5.9267113]
[1763487020612,0.2,139.91,139.89,6.6067113]
[1763487020823,0.2,139.91,139.9,5.9267113]
[1763487021032,0.2,139.91,139.9,6.6067113]
[1763487022818,0.2,139.91,139.9,0.68]
[1763487023017,0.2,139.91,139.89,5.9267113]
[1763487023222,0.2,139.91,139.87,5.0]
[1763487023431,0.2,139.91,139.89,5.9267113]
[1763487024145,0.2,139.91,139.9,6.6067113]
[1763487024933,0.87,139.91,139.88,4.32]
[1763487025130,0.87,139.91,139.87,9.89240298]
[1763487025647,0.2,139.91,139.88,10.57240298]
[1763487025969,0.67,139.9,139.82,18.12096]
[1763487026150,0.67,139.9,139.84,0.68]
[1763487026326,9.89240298,139.88,139.82,9.89240298]
[1763487026528,9.89240298,139.87,139.82,10.57240298]
[1763487026966,0.67,139.87,139.83,0.68]
[1763487027127,0.67,139.87,139.83,4.23503038]
[1763487027638,0.67,139.87,139.83,0.68]
[1763487028149,0.67,139.87,139.83,4.23503038]
[1763487028838,0.67,139.87,139.83,10.58199724]
[1763487029360,0.67,139.87,139.76,9.78882769]
[1763487029361,9.90199724,139.84,139.76,0.68]
[1763487029524,9.78882769,139.86,139.77,9.90199724]
[1763487029525,10.57199724,139.83,139.77,9.90199724]
[1763487029945,10.57199724,139.83,139.78,9.90199724]
[1763487030162,10.57199724,139.83,139.78,10.58199724]
[1763487030368,0.67,139.82,139.78,10.58199724]
[1763487030584,4.72650815,139.84,139.79,10.58199724]
[1763487030777,18.79096,139.85,139.8,10.58199724]
[1763487030963,9.90199724,139.84,139.8,0.68]
[1763487031159,10.57199724,139.84,139.8,0.68]
[1763487031360,0.67,139.84,139.8,0.68]
[1763487031765,28.02295724,139.85,139.8,10.58199724]
[1763487032061,28.69295724,139.85,139.8,0.68]
[1763487032260,10.57199724,139.84,139.8,0.68]
[1763487032463,0.67,139.84,139.8,0.68]
[1763487033165,0.67,139.84,139.8,10.58199724]
[1763487033368,14.10882769,139.88,139.83,9.90199724]
[1763487033369,9.90199724,139.88,139.83,9.90199724]
[1763487033670,0.2,139.91,139.81,23.12096]
[1763487033847,0.2,139.91,139.87,9.90199724]
[1763487034050,0.2,139.91,139.88,9.90199724]
[1763487034586,0.2,139.91,139.86,4.32]
[1763487034587,0.2,139.91,139.87,9.90199724]
[1763487034755,0.87,139.91,139.87,4.32]
[1763487034952,0.87,139.91,139.87,10.58199724]
[1763487035254,0.67,139.9,139.86,9.90199724]
[1763487035673,0.67,139.9,139.86,14.22199724]
[1763487035855,0.67,139.9,139.86,14.90199724]
[1763487036064,0.67,139.9,139.87,9.90199724]
[1763487037362,0.67,139.9,139.86,14.90199724]
[1763487037682,0.67,139.9,139.86,5.0]
[1763487037981,0.67,139.9,139.86,14.22199724]
[1763487038189,0.67,139.9,139.86,14.90199724]
[1763487039186,0.67,139.9,139.86,14.22199724]
[1763487039484,0.67,139.9,139.86,14.90199724]
[1763487039889,0.67,139.9,139.87,9.90199724]
[1763487043157,0.2,139.91,139.87,10.56199724]
[1763487043389,0.71,139.9,139.87,9.90199724]
[1763487044470,0.91,139.91,139.87,10.56199724]
[1763487044664,0.2,139.91,139.89,9.90199724]
[1763487044984,0.2,139.91,139.88,10.56199724]
[1763487045187,0.91,139.91,139.86,10.56199724]
[1763487045361,0.91,139.91,139.87,4.3]
[1763487045562,0.71,139.9,139.87,4.3]
[1763487046085,0.71,139.9,139.87,14.20199724]
[1763487047292,0.71,139.9,139.87,4.3]
[1763487047486,10.61199724,139.9,139.75,61.8]
[1763487047670,9.90199724,139.89,139.82,0.66]
[1763487047861,9.90199724,139.88,139.83,14.20199724]
[1763487048060,10.61199724,139.89,139.83,14.20199724]
[1763487048261,0.71,139.88,139.8,18.12096]
[1763487048565,9.90199724,139.86,139.81,4.3]
[1763487048763,21.67594794,139.87,139.82,3.55498794]
[1763487048962,22.38594794,139.87,139.82,3.55498794]
[1763487049270,0.71,139.86,139.82,4.21498794]
[1763487049470,21.67594794,139.87,139.82,3.55498794]
[1763487049471,3.55498794,139.87,139.82,3.55498794]
[1763487049678,18.12096,139.88,139.84,3.55498794]
[1763487049879,0.71,139.89,139.85,3.55498794]
[1763487050080,0.71,139.89,139.85,4.21498794]
[1763487050274,18.12096,139.9,139.85,4.21498794]
[1763487050570,4.26498794,139.89,139.84,4.3]
[1763487050980,0.71,139.88,139.84,4.3]
[1763487051183,0.71,139.88,139.84,7.85498794]
[1763487051390,18.83096,139.9,139.85,4.21498794]
[1763487051577,0.91,139.91,139.87,3.55498794]
[1763487051790,0.91,139.91,139.86,4.21498794]
[1763487052271,0.91,139.91,139.87,3.55498794]
[1763487052796,0.2,139.91,139.88,3.55498794]
[1763487053008,0.2,139.91,139.84,7.85498794]
[1763487053009,0.2,139.91,139.89,3.55498794]
[1763487053779,0.2,139.91,139.89,4.21498794]
[1763487053978,0.2,139.91,139.89,0.66]
[1763487054297,0.2,139.91,139.9,4.21498794]
[1763487055278,0.2,139.91,139.9,3.55498794]
[1763487056025,0.2,139.91,139.9,4.21498794]
[1763487056590,0.2,139.91,139.89,3.55498794]
[1763487056974,0.2,139.91,139.89,0.66]
[1763487057204,0.91,139.91,139.86,0.66]
[1763487057377,0.91,139.91,139.87,3.55498794]
[1763487057581,0.91,139.91,139.86,4.21498794]
[1763487057902,0.71,139.9,139.86,4.21498794]
[1763487058684,0.71,139.9,139.87,3.55498794]
[1763487059199,0.91,139.91,139.87,4.21498794]
[1763487059397,0.2,139.91,139.88,0.66]
[1763487059989,0.91,139.91,139.87,3.55498794]
[1763487060210,0.91,139.91,139.86,0.66]
[1763487060380,0.91,139.91,139.88,3.55498794]
[1763487060580,0.91,139.91,139.87,3.55498794]
[1763487060783,0.71,139.9,139.86,4.21498794]
[1763487060981,0.71,139.9,139.86,3.55498794]
[1763487061187,0.71,139.9,139.85,7.85498794]
[1763487061409,0.71,139.9,139.85,8.51498794]
[1763487061708,0.71,139.9,139.86,4.21498794]
[1763487062081,4.26498794,139.9,139.84,3.55498794]
[1763487062492,18.32096,139.91,139.82,3.55498794]
[1763487062493,3.55498794,139.88,139.82,3.55498794]
[1763487062693,3.55498794,139.87,139.8,0.66]
[1763487062909,3.55498794,139.85,139.79,7.85498794]
[1763487063207,3.55498794,139.84,139.78,4.21498794]
[1763487063523,22.38594794,139.86,139.81,3.55498794]
[1763487063878,0.71,139.85,139.81,3.55498794]
[1763487064515,4.26498794,139.85,139.79,4.21498794]
[1763487064805,4.3,139.89,139.79,4.21498794]
[1763487064806,0.71,139.89,139.84,3.55498794]
[1763487065004,0.71,139.89,139.83,0.66]
[1763487065005,18.12096,139.88,139.83,0.66]
[1763487065182,4.26498794,139.87,139.82,3.55498794]
[1763487065514,3.55498794,139.86,139.8,3.55498794]
[1763487065805,10.49882769,139.87,139.78,4.3]
[1763487065806,4.26498794,139.87,139.82,3.55498794]
[1763487066002,4.26498794,139.86,139.81,3.55498794]
[1763487066304,3.55498794,139.88,139.82,3.55498794]
[1763487066509,22.38594794,139.87,139.82,3.55498794]
[1763487066684,22.38594794,139.87,139.81,4.21498794]
[1763487066879,3.55498794,139.86,139.81,4.21498794]
[1763487067097,3.55498794,139.86,139.79,3.55498794]
[1763487067098,3.55498794,139.85,139.79,3.55498794]
[1763487067413,3.55498794,139.85,139.79,4.21498794]
[1763487067414,4.26498794,139.85,139.79,4.21498794]
[1763487067783,4.26498794,139.84,139.78,3.55498794]
[1763487067985,4.26498794,139.84,139.78,4.21498794]
[1763487068494,0.71,139.83,139.78,4.21498794]
[1763487068896,0.71,139.83,139.79,0.66]
[1763487069688,4.26498794,139.83,139.79,0.66]
[1763487070400,0.71,139.83,139.79,0.66]
[1763487070881,0.71,139.83,139.8,3.55498794]
[1763487071509,0.71,139.83,139.79,4.21498794]
[1763487072097,4.26498794,139.83,139.77,3.55498794]
[1763487072300,4.26498794,139.83,139.78,3.55498794]
[1763487072491,4.26498794,139.83,139.78,4.27498794]
[1763487072809,4.26498794,139.83,139.79,0.72]
[1763487074411,3.55498794,139.83,139.79,0.72]
[1763487074712,4.24498794,139.83,139.79,0.72]
[1763487075310,4.24498794,139.83,139.75,4.3]
[1763487075311,4.24498794,139.82,139.75,4.3]
[1763487075609,3.55498794,139.8,139.75,4.27498794]
[1763487075933,0.69,139.79,139.75,0.72]
[1763487076099,3.55498794,139.78,139.73,4.27498794]
[1763487076302,3.55498794,139.77,139.72,4.37498794]
[1763487076509,4.24498794,139.77,139.73,0.72]
[1763487076810,0.69,139.77,139.73,0.72]
[1763487077625,3.55498794,139.78,139.73,0.72]
[1763487077836,0.69,139.78,139.73,4.27498794]
[1763487078003,4.24498794,139.78,139.73,0.72]
[1763487078332,3.55498794,139.75,139.72,0.1]
[1763487079027,3.55498794,139.73,139.72,0.1]
[1763487079410,4.24498794,139.73,139.72,0.1]
[1763487079912,4.24498794,139.73,139.67,2.46493594]
[1763487080532,4.97,139.78,139.72,3.55498794]
[1763487080705,4.97,139.78,139.73,3.55498794]
[1763487080706,8.52498794,139.78,139.73,3.55498794]
[1763487081036,18.12096,139.81,139.74,3.55498794]
[1763487081037,8.52498794,139.8,139.74,3.55498794]
[1763487081724,3.55498794,139.78,139.73,3.55498794]
[1763487082226,4.22498794,139.78,139.73,3.55498794]
[1763487082434,3.55498794,139.79,139.73,3.55498794]
[1763487082928,9.91451096,139.79,139.73,9.91451096]
[1763487084231,10.58451096,139.78,139.69,0.67]
[1763487084442,10.58451096,139.78,139.72,9.91451096]
[1763487084942,10.58451096,139.78,139.7,0.67]
[1763487084943,5.93251216,139.79,139.73,5.93251216]
[1763487085142,6.60251216,139.79,139.73,5.93251216]
[1763487085809,6.60251216,139.79,139.74,5.93251216]
[1763487086049,6.60251216,139.79,139.73,5.93251216]
[1763487086210,5.93251216,139.78,139.71,0.67]
[1763487086412,5.93251216,139.78,139.73,5.93251216]
[1763487086735,6.60251216,139.77,139.68,18.12096]
[1763487087032,5.93251216,139.74,139.67,0.67]
[1763487087231,5.93251216,139.74,139.68,5.93251216]
[1763487087419,6.60251216,139.74,139.68,5.93251216]
[1763487087615,5.93251216,139.72,139.65,0.1]
[1763487087833,5.93251216,139.72,139.65,6.03251216]
[1763487088038,5.93251216,139.71,139.65,6.03251216]
[1763487088210,5.93251216,139.7,139.65,0.1]
[1763487088404,5.93251216,139.7,139.65,6.03251216]
[1763487088611,5.93251216,139.71,139.65,6.03251216]
[1763487088826,5.93251216,139.71,139.65,0.1]
[1763487089026,0.67,139.72,139.66,5.93251216]
[1763487089314,5.93251216,139.8,139.7,5.93251216]
[1763487089315,4.97,139.76,139.7,5.93251216]
[1763487089511,5.93251216,139.75,139.7,5.93251216]
[1763487089838,6.60251216,139.74,139.68,5.93251216]
[1763487090436,6.60251216,139.73,139.67,5.93251216]
[1763487091020,9.78882769,139.75,139.66,0.67]
[1763487091021,5.93251216,139.71,139.66,5.93251216]
[1763487091257,5.93251216,139.71,139.65,0.1]
[1763487091545,6.60251216,139.71,139.65,6.03251216]
[1763487091722,5.93251216,139.7,139.65,6.03251216]
[1763487092045,6.60251216,139.7,139.65,0.1]
[1763487092737,4.3,139.72,139.65,0.1]
[1763487092738,5.93251216,139.67,139.65,0.1]
[1763487092942,5.93251216,139.66,139.65,0.1]
[1763487093429,6.60251216,139.66,139.65,0.1]
[1763487093939,16.39133985,139.66,139.65,0.1]
[1763487095218,18.12096,139.66,139.65,0.1]
[1763487095531,24.72347216,139.66,139.65,0.1]
[1763487096949,0.67,139.66,139.65,0.1]
[1763487097125,24.72347216,139.68,139.65,0.1]
[1763487097524,6.60251216,139.67,139.65,0.1]
[1763487097928,6.60251216,139.66,139.65,0.1]
[1763487100829,0.67,139.66,139.65,0.1]
[1763487101252,5.93251216,139.67,139.65,0.1]
[1763487101565,6.60251216,139.7,139.65,0.1]
[1763487101732,5.89975383,139.76,139.65,0.77]
[1763487101733,5.93251216,139.71,139.65,0.77]
[1763487101933,5.93251216,139.7,139.65,6.03251216]
[1763487102426,6.60251216,139.7,139.65,0.77]
[1763487102857,0.67,139.7,139.65,0.77]
[1763487103436,6.60251216,139.7,139.65,0.77]
[1763487104343,0.67,139.7,139.66,4.3]
[1763487104530,0.67,139.7,139.65,0.77]
[1763487104531,6.60251216,139.7,139.65,4.4]
[1763487104732,6.60251216,139.7,139.65,11.00251216]
[1763487104943,0.67,139.7,139.66,0.67]
[1763487105269,0.67,139.7,139.65,0.1]
[1763487105270,5.93251216,139.67,139.65,0.1]
[1763487105569,15.72133985,139.66,139.65,0.1]
[1763487105961,0.67,139.66,139.65,0.1]
[1763487106148,6.60251216,139.66,139.65,0.1]
[1763487106338,5.93251216,139.68,139.65,0.1]
[1763487106543,0.67,139.74,139.67,5.93251216]
[1763487106764,0.67,139.74,139.66,4.97]
[1763487106967,0.67,139.74,139.7,5.93251216]
[1763487107148,5.93251216,139.75,139.67,0.67]
[1763487107340,6.60251216,139.75,139.7,5.93251216]
[1763487107564,24.72347216,139.75,139.7,5.93251216]
[1763487107759,18.12096,139.75,139.7,6.60251216]
[1763487107961,18.79096,139.75,139.7,6.60251216]
[1763487108448,24.72347216,139.75,139.7,6.60251216]
[1763487109760,24.72347216,139.75,139.71,4.3]
[1763487110257,18.79096,139.75,139.71,4.3]
[1763487110445,4.3,139.81,139.72,6.60251216]
[1763487110446,6.60251216,139.77,139.72,6.60251216]
[1763487110644,5.93251216,139.79,139.74,5.93251216]
[1763487111064,0.67,139.78,139.74,5.93251216]
[1763487111277,0.67,139.78,139.73,6.60251216]
[1763487111978,5.93251216,139.77,139.74,4.3]
[1763487112152,5.93251216,139.76,139.71,5.93251216]
[1763487112352,5.93251216,139.75,139.7,5.93251216]
[1763487112557,0.67,139.74,139.69,5.93251216]
[1763487112776,0.67,139.74,139.71,4.3]
[1763487113089,6.60251216,139.74,139.71,4.3]
[1763487113266,4.68527114,139.78,139.71,4.3]
[1763487113267,4.68527114,139.78,139.72,6.60251216]
[1763487113473,0.67,139.77,139.72,6.60251216]
[1763487114285,27.90978769,139.79,139.71,4.3]
[1763487114286,24.72347216,139.79,139.74,5.93251216]
[1763487114484,0.67,139.78,139.74,5.93251216]
[1763487114785,0.67,139.78,139.74,6.60251216]
[1763487114990,0.67,139.81,139.77,5.93251216]
[1763487115185,0.67,139.81,139.78,4.3]
[1763487115489,6.60251216,139.81,139.78,4.3]